bitfinex/quotes_SOLUSD_20250622
["timestamp","ask_amount","ask_price","bid_price","bid_amount"]
[1750632572137,0.68,132.1,132.08,26.0]
[1750632573614,0.68,132.1,132.08,35.93828069]
[1750632575641,18.64964886,132.11,132.08,35.93828069]
[1750632575642,18.64964886,132.11,132.09,9.93828069]
[1750632576029,19.32964886,132.11,132.09,9.93828069]
[1750632577236,19.32964886,132.11,132.08,26.0]
[1750632577237,19.32964886,132.11,132.08,35.93828069]
[1750632577629,19.32964886,132.11,132.09,9.93828069]
[1750632579354,9.93828069,132.13,132.09,9.93828069]
[1750632579544,0.68,132.12,132.09,9.93828069]
[1750632580058,9.93828069,132.13,132.09,9.93828069]
[1750632580233,18.64964886,132.11,132.09,9.93828069]
[1750632581125,18.64964886,132.11,132.08,26.0]
[1750632581326,19.32964886,132.11,132.09,9.93828069]
[1750632581530,19.32964886,132.11,132.08,26.0]
[1750632581531,28.58792955,132.14,132.1,9.93828069]
[1750632581730,0.68,132.13,132.1,9.93828069]
[1750632582533,28.58792955,132.14,132.1,9.93828069]
[1750632582932,0.68,132.13,132.1,9.93828069]
[1750632583230,28.58792955,132.14,132.1,9.93828069]
[1750632583634,0.68,132.13,132.1,9.93828069]
[1750632583831,0.71,132.13,132.1,9.93828069]
[1750632584030,18.64964886,132.1,132.06,9.93828069]
[1750632584243,18.64964886,132.07,132.04,19.52988069]
[1750632584446,0.71,132.07,132.04,19.52988069]
[1750632584639,0.71,132.07,132.06,26.0]
[1750632584826,19.35964886,132.07,132.06,26.0]
[1750632585030,18.64964886,132.06,132.04,8.02]
[1750632585326,9.93828069,132.05,132.01,9.93828069]
[1750632585530,29.29792955,132.04,132.0,11.50928069]
[1750632585750,9.93828069,132.03,131.98,8.02]
[1750632585962,0.71,132.02,131.98,17.95828069]
[1750632586132,0.71,132.01,131.98,17.95828069]
[1750632586546,19.35964886,132.01,132.0,26.0]
[1750632587362,19.35964886,132.01,131.98,17.95828069]
[1750632587543,18.64964886,132.01,131.99,9.93828069]
[1750632588060,19.35964886,132.01,132.0,26.0]
[1750632588434,19.35964886,132.01,131.98,17.95828069]
[1750632588654,19.35964886,132.01,132.0,26.0]
[1750632590354,19.35964886,132.0,131.98,8.02]
[1750632590751,19.35964886,132.0,131.99,26.0]
[1750632591362,19.35964886,132.0,131.98,17.95828069]
[1750632591563,18.64964886,132.0,131.98,17.95828069]
[1750632591963,29.29792955,132.02,132.01,26.0]
[1750632594382,19.35964886,132.01,131.98,43.95828069]
[1750632595042,29.29792955,132.01,131.98,34.02]
[1750632595439,29.29792955,132.01,131.98,8.02]
[1750632596059,0.71,132.0,131.98,8.02]
[1750632596676,9.93828069,132.02,131.98,17.95828069]
[1750632596970,18.64964886,132.02,131.99,9.93828069]
[1750632597377,19.35964886,132.03,132.0,9.93828069]
[1750632597868,10.64828069,132.05,132.01,9.93828069]
[1750632598066,10.64828069,132.05,131.98,8.02]
[1750632598067,18.64964886,132.04,132.02,9.93828069]
[1750632598257,18.64964886,132.04,132.01,9.93828069]
[1750632598459,19.35964886,132.03,132.0,9.93828069]
[1750632599286,0.71,132.02,131.99,9.93828069]
[1750632599772,0.71,132.02,131.98,34.02]
[1750632599957,0.71,132.01,131.98,34.02]
[1750632600163,10.64828069,132.02,131.98,43.95828069]
[1750632600359,0.71,132.02,131.99,9.93828069]
[1750632600782,18.64964886,132.03,132.0,9.93828069]
[1750632601089,18.64964886,132.05,131.98,34.02]
[1750632601250,18.64964886,132.05,132.01,35.93828069]
[1750632601251,0.71,132.04,132.01,35.93828069]
[1750632602280,0.71,132.05,132.02,9.93828069]
[1750632602488,0.71,132.04,132.01,35.93828069]
[1750632602950,28.58792955,132.06,132.01,35.93828069]
[1750632603146,0.71,132.05,132.01,35.93828069]
[1750632603558,0.71,132.05,132.02,9.93828069]
[1750632604175,28.58792955,132.06,132.01,35.93828069]
[1750632604480,0.71,132.04,132.01,35.93828069]
[1750632604871,9.93828069,132.06,132.02,9.93828069]
[1750632605056,0.71,132.05,132.02,9.93828069]
[1750632605979,9.93828069,132.05,132.01,35.93828069]
[1750632606276,0.71,132.04,132.01,35.93828069]
[1750632607679,9.93828069,132.05,132.01,35.93828069]
[1750632607898,10.64828069,132.06,132.02,9.93828069]
[1750632608683,0.71,132.05,132.02,9.93828069]
[1750632613314,0.71,132.05,132.03,9.93828069]
[1750632613473,18.64964886,132.08,132.04,9.93828069]
[1750632613678,19.35964886,132.08,132.05,9.93828069]
[1750632613887,29.29792955,132.08,132.04,9.93828069]
[1750632614079,0.75,132.07,132.05,9.93828069]
[1750632614685,0.75,132.1,132.06,9.93828069]
[1750632614895,10.68828069,132.12,132.08,9.93828069]
[1750632615094,9.93828069,132.12,132.08,9.93828069]
[1750632615301,0.75,132.11,132.08,9.93828069]
[1750632615476,19.39964886,132.11,132.08,35.93828069]
[1750632617376,6.6194,132.15,132.1,26.0]
[1750632617580,18.64964886,132.12,132.1,26.0]
[1750632618793,19.39964886,132.14,132.1,9.93828069]
[1750632619005,0.75,132.13,132.1,9.93828069]
[1750632620524,20.15504258,132.18,132.12,9.93828069]
[1750632620820,20.15504258,132.18,132.17,9.93828069]
[1750632621097,12.15307962,132.25,132.17,9.93828069]
[1750632621302,9.93828069,132.21,132.15,32.5361]
[1750632621604,18.64964886,132.2,132.17,9.93828069]
[1750632621903,6.5163,132.25,132.19,9.93828069]
[1750632622197,10.68828069,132.23,132.19,9.93828069]
[1750632622582,19.39964886,132.22,132.19,9.93828069]
[1750632624036,19.39964886,132.22,132.18,9.93828069]
[1750632624304,9.93828069,132.21,132.17,9.93828069]
[1750632624506,9.93828069,132.21,132.15,32.5361]
[1750632624507,29.33792955,132.2,132.16,9.93828069]
[1750632625394,19.39964886,132.2,132.17,9.93828069]
[1750632625791,28.58792955,132.22,132.18,9.93828069]
[1750632626102,18.64964886,132.2,132.18,9.93828069]
[1750632626408,0.75,132.21,132.18,9.93828069]
[1750632626901,7.2663,132.25,132.19,9.93828069]
[1750632627104,18.64964886,132.22,132.19,9.93828069]
[1750632628384,0.75,132.21,132.15,87.4]
[1750632628598,0.75,132.21,132.14,3.74527377]
[1750632628599,0.75,132.2,132.17,9.93828069]
[1750632629093,10.68828069,132.2,132.16,35.93828069]
[1750632629301,0.75,132.19,132.15,9.93828069]
[1750632629479,10.68828069,132.19,132.15,35.93828069]
[1750632629882,10.68828069,132.19,132.15,9.93828069]
[1750632630112,10.68828069,132.19,132.15,35.93828069]
[1750632630606,9.93828069,132.21,132.17,9.93828069]
[1750632630785,10.68828069,132.22,132.18,9.93828069]
[1750632631482,10.68828069,132.22,132.18,35.93828069]
[1750632631683,19.39964886,132.22,132.18,35.93828069]
[1750632632115,29.33792955,132.22,132.18,35.93828069]
[1750632635791,9.93828069,132.23,132.18,35.93828069]
[1750632635995,10.68828069,132.23,132.19,9.93828069]
[1750632637715,0.75,132.23,132.19,9.93828069]
[1750632638203,10.68828069,132.23,132.19,9.93828069]
[1750632638907,0.75,132.23,132.19,9.93828069]
[1750632639113,6.3947,132.28,132.22,35.93828069]
[1750632639317,0.75,132.22,132.17,26.0]
[1750632639492,9.93828069,132.21,132.17,33.84]
[1750632639691,10.68828069,132.22,132.17,43.77828069]
[1750632639891,10.68828069,132.22,132.18,9.93828069]
[1750632640193,0.75,132.22,132.18,9.93828069]
[1750632640398,10.68828069,132.22,132.18,9.93828069]
[1750632640598,10.68828069,132.22,132.17,43.77828069]
[1750632641525,10.68828069,132.21,132.17,33.84]
[1750632641902,9.93828069,132.22,132.18,9.93828069]
[1750632642406,10.68828069,132.22,132.18,9.93828069]
[1750632643010,10.68828069,132.22,132.17,43.77828069]
[1750632643819,9.93828069,132.21,132.17,43.77828069]
[1750632644125,10.67828069,132.21,132.17,43.77828069]
[1750632645026,0.74,132.23,132.18,9.93828069]
[1750632645209,0.74,132.23,132.19,9.93828069]
[1750632645405,10.67828069,132.23,132.19,9.93828069]
[1750632645720,10.67828069,132.23,132.17,33.84]
[1750632645909,10.67828069,132.23,132.19,9.93828069]
[1750632646115,10.67828069,132.23,132.17,33.84]
[1750632646116,10.67828069,132.21,132.17,43.77828069]
[1750632646627,29.32792955,132.22,132.17,33.84]
[1750632646824,29.32792955,132.22,132.18,9.93828069]
[1750632647021,0.74,132.22,132.18,9.93828069]
[1750632647323,1.641,132.25,132.19,9.93828069]
[1750632647324,9.93828069,132.23,132.19,9.93828069]
[1750632648121,0.74,132.24,132.19,9.93828069]
[1750632648429,10.67828069,132.23,132.17,33.84]
[1750632648605,10.67828069,132.22,132.18,9.93828069]
[1750632649829,0.74,132.21,132.18,9.93828069]
[1750632650138,10.67828069,132.2,132.17,7.84]
[1750632650430,0.74,132.2,132.17,17.77828069]
[1750632651020,9.93828069,132.22,132.18,9.93828069]
[1750632651217,10.67828069,132.21,132.17,17.77828069]
[1750632653431,0.74,132.21,132.17,17.77828069]
[1750632654507,10.67828069,132.21,132.17,17.77828069]
[1750632655043,0.74,132.21,132.17,17.77828069]
[1750632655533,10.67828069,132.21,132.17,17.77828069]
[1750632656808,0.74,132.19,132.17,7.84]
[1750632657115,10.67828069,132.19,132.17,7.84]
[1750632657308,9.93828069,132.19,132.17,7.84]
[1750632657510,10.67828069,132.19,132.17,7.84]
[1750632659328,0.74,132.19,132.17,7.84]
[1750632659629,29.32792955,132.2,132.17,7.84]
[1750632659830,9.93828069,132.19,132.17,7.84]
[1750632660132,29.32792955,132.18,132.13,9.93828069]
[1750632660317,10.67828069,132.17,132.13,26.0]
[1750632661132,0.74,132.17,132.13,26.0]
[1750632661322,10.67828069,132.17,132.13,35.93828069]
[1750632662224,0.74,132.15,132.13,26.0]
[1750632662427,9.93828069,132.16,132.13,26.0]
[1750632662428,10.67828069,132.16,132.13,26.0]
[1750632662627,0.74,132.15,132.13,26.0]
[1750632663342,0.74,132.12,132.05,56.8548]
[1750632663529,10.67828069,132.1,132.06,17.69828069]
[1750632663722,19.38964886,132.09,132.06,7.76]
[1750632663923,0.74,132.06,132.01,7.76]
[1750632664126,10.67828069,132.04,132.0,9.93828069]
[1750632664518,10.67828069,132.04,132.0,35.93828069]
[1750632664917,0.74,132.04,132.03,26.0]
[1750632665329,10.67828069,132.04,132.03,26.0]
[1750632665642,0.74,132.03,131.99,9.93828069]
[1750632666014,9.93828069,132.03,132.01,26.0]
[1750632666215,0.74,132.01,131.98,7.76]
[1750632666433,0.74,132.01,131.98,17.69828069]
[1750632666623,0.74,132.01,132.0,26.0]
[1750632667029,19.38964886,132.01,132.0,26.0]
[1750632667243,0.74,132.01,132.0,26.0]
[1750632669457,18.64964886,132.02,132.0,26.0]
[1750632669753,19.38964886,132.02,132.0,26.0]
[1750632670636,0.74,132.01,132.0,26.0]
[1750632672255,19.38964886,132.02,132.0,26.0]
[1750632672722,0.74,132.04,132.0,26.0]
[1750632672918,0.74,132.03,132.01,26.0]
[1750632673122,0.74,132.02,132.01,26.0]
[1750632673322,10.67828069,132.02,132.01,26.0]
[1750632674347,0.74,132.02,132.01,26.0]
[1750632674723,19.38964886,132.02,132.01,26.0]
[1750632675335,9.93828069,132.04,132.01,26.0]
[1750632675539,0.7,132.03,132.01,35.93828069]
[1750632676732,0.7,132.03,132.01,26.0]
[1750632678632,1.5195,132.08,132.02,9.93828069]
[1750632678633,9.93828069,132.07,132.02,9.93828069]
[1750632678832,1.5195,132.08,132.01,26.0]
[1750632678833,0.7,132.05,132.01,26.0]
[1750632679035,0.7,132.05,132.02,9.93828069]
[1750632679326,6.4344,132.09,132.02,9.93828069]
[1750632679327,7.1344,132.09,132.04,35.93828069]
[1750632679543,0.7,132.09,132.07,9.93828069]
[1750632680034,18.64964886,132.11,132.08,9.93828069]
[1750632680228,18.64964886,132.11,132.07,26.0]
[1750632680229,0.7,132.11,132.09,9.93828069]
[1750632680441,0.7,132.11,132.07,26.0]
[1750632680651,10.63828069,132.11,132.07,26.0]
[1750632680833,0.7,132.1,132.07,26.0]
[1750632681154,0.7,132.09,132.07,26.0]
[1750632685130,0.7,132.07,132.03,9.93828069]
[1750632685350,18.64964886,132.07,132.05,9.93828069]
[1750632686226,18.64964886,132.07,132.06,26.0]
[1750632686727,18.64964886,132.07,132.05,35.93828069]
[1750632686953,19.34964886,132.07,132.05,26.0]
[1750632689242,0.7,132.07,132.05,35.93828069]
[1750632689434,18.64964886,132.08,132.05,35.93828069]
[1750632689639,19.34964886,132.08,132.05,35.93828069]
[1750632689840,0.7,132.08,132.06,9.93828069]
[1750632690137,18.64964886,132.1,132.07,9.93828069]
[1750632690339,29.28792955,132.1,132.08,26.0]
[1750632690537,0.7,132.09,132.08,26.0]
[1750632690853,19.34964886,132.1,132.08,26.0]
[1750632691855,18.64964886,132.11,132.09,35.93828069]
[1750632692938,0.7,132.12,132.09,35.93828069]
[1750632693261,19.34964886,132.12,132.09,35.93828069]
[1750632693454,0.7,132.11,132.09,35.93828069]
[1750632693667,28.58792955,132.12,132.09,26.0]
[1750632693957,0.7,132.11,132.09,26.0]
[1750632695441,19.34964886,132.12,132.09,26.0]
[1750632695755,19.34964886,132.12,132.1,9.93828069]
[1750632696759,19.34964886,132.12,132.09,35.93828069]
[1750632697865,19.34964886,132.12,132.09,26.0]
[1750632698568,19.34964886,132.12,132.09,35.93828069]
[1750632701758,28.58792955,132.12,132.09,26.0]
[1750632702058,0.7,132.11,132.09,26.0]
[1750632702436,0.7,132.07,132.03,11.50308069]
[1750632702637,0.7,132.04,132.01,7.7]
[1750632702859,0.7,132.03,132.01,7.7]
[1750632703168,0.7,132.03,132.01,33.7]
[1750632703347,0.7,132.03,132.01,43.63828069]
[1750632703551,29.28792955,132.05,132.01,17.63828069]
[1750632704482,18.64964886,132.05,132.02,9.93828069]
[1750632704642,19.34964886,132.07,132.04,9.93828069]
[1750632705279,26.0,132.12,132.04,9.93828069]
[1750632705280,0.7,132.09,132.06,35.93828069]
[1750632705446,28.58792955,132.12,132.08,9.93828069]
[1750632705641,0.7,132.11,132.08,9.93828069]
[1750632706557,28.58792955,132.12,132.09,9.93828069]
[1750632706558,18.64964886,132.12,132.09,9.93828069]
[1750632706864,19.34964886,132.12,132.09,9.93828069]
[1750632709060,19.34964886,132.12,132.1,9.93828069]
[1750632709358,19.34964886,132.12,132.09,35.93828069]
[1750632710068,0.7,132.11,132.08,26.0]
[1750632710373,0.7,132.11,132.08,9.93828069]
[1750632711672,28.58792955,132.12,132.08,9.93828069]
[1750632712055,0.7,132.11,132.08,9.93828069]
[1750632712777,28.58792955,132.12,132.08,9.93828069]
[1750632712778,18.64964886,132.12,132.08,9.93828069]
[1750632713081,19.34964886,132.12,132.08,9.93828069]
[1750632713278,0.7,132.11,132.08,9.93828069]
[1750632714975,9.93828069,132.11,132.07,9.93828069]
[1750632715149,0.7,132.1,132.07,9.93828069]
[1750632715547,0.7,132.1,132.08,9.93828069]
[1750632715743,28.58792955,132.12,132.08,9.93828069]
[1750632715976,0.7,132.11,132.09,9.93828069]
[1750632716648,15.02597349,132.13,132.1,9.93828069]
[1750632717876,0.7,132.12,132.09,35.93828069]
[1750632718267,0.7,132.12,132.1,9.93828069]
[1750632720074,0.7,132.13,132.1,9.93828069]
[1750632720271,0.7,132.13,132.09,26.0]
[1750632720474,18.64964886,132.16,132.1,9.93828069]
[1750632720680,9.93828069,132.14,132.1,9.93828069]
[1750632720867,0.7,132.13,132.1,9.93828069]
[1750632721378,9.93828069,132.13,132.1,26.0]
[1750632721556,0.7,132.1,132.09,26.0]
[1750632722882,18.64964886,132.12,132.09,35.93828069]
[1750632723064,0.7,132.13,132.1,9.93828069]
[1750632723372,0.7,132.13,132.1,26.0]
[1750632723573,9.93828069,132.13,132.1,26.0]
[1750632723782,0.7,132.12,132.1,26.0]
[1750632724373,28.58792955,132.14,132.1,35.93828069]
[1750632724554,0.7,132.13,132.1,35.93828069]
[1750632725181,0.7,132.13,132.1,26.0]
[1750632725393,0.7,132.13,132.1,35.93828069]
[1750632726180,6.4591,132.17,132.07,7.7]
[1750632726181,19.34964886,132.11,132.07,7.7]
[1750632726385,19.34964886,132.11,132.08,26.0]
[1750632726585,0.7,132.13,132.1,35.93828069]
[1750632726977,9.93828069,132.13,132.1,26.0]
[1750632727181,0.7,132.12,132.1,26.0]
[1750632727581,0.7,132.13,132.1,26.0]
[1750632727892,10.63828069,132.13,132.1,26.0]
[1750632728064,9.93828069,132.13,132.1,26.0]
[1750632728270,0.7,132.13,132.1,26.0]
[1750632728676,0.7,132.12,132.1,26.0]
[1750632730793,9.93828069,132.13,132.1,26.0]
[1750632730973,10.63828069,132.13,132.1,26.0]
[1750632731692,18.64964886,132.09,132.07,7.7]
[1750632732000,0.7,132.13,132.07,17.63828069]
[1750632732164,0.7,132.13,132.07,9.2679]
[1750632732368,18.64964886,132.13,132.1,26.0]
[1750632732590,0.7,132.12,132.1,26.0]
[1750632733677,19.34964886,132.13,132.1,26.0]
[1750632734198,0.7,132.13,132.1,35.93828069]
[1750632735966,0.74,132.15,132.12,9.93828069]
[1750632736172,0.74,132.15,132.11,9.93828069]
[1750632736383,0.74,132.15,132.12,9.93828069]
[1750632738192,0.74,132.15,132.13,9.93828069]
[1750632738977,18.64964886,132.17,132.13,9.93828069]
[1750632739183,29.32792955,132.17,132.13,9.93828069]
[1750632739898,0.74,132.2,132.16,9.93828069]
[1750632740074,0.74,132.2,132.17,9.93828069]
[1750632740279,10.67828069,132.22,132.18,9.93828069]
[1750632740694,18.64964886,132.21,132.18,9.93828069]
[1750632740881,18.64964886,132.22,132.2,9.93828069]
[1750632741390,18.64964886,132.22,132.19,9.93828069]
[1750632741605,9.93828069,132.24,132.17,26.0]
[1750632741606,10.67828069,132.21,132.17,26.0]
[1750632741810,0.74,132.21,132.18,9.93828069]
[1750632742475,9.93828069,132.21,132.17,9.93828069]
[1750632742779,9.93828069,132.21,132.16,35.93828069]
[1750632742780,10.67828069,132.2,132.16,35.93828069]
[1750632742977,0.74,132.2,132.17,9.93828069]
[1750632743485,10.67828069,132.2,132.16,35.93828069]
[1750632743683,0.74,132.2,132.17,9.93828069]
[1750632743993,19.38964886,132.21,132.18,9.93828069]
[1750632744176,0.74,132.21,132.18,9.93828069]
[1750632744501,12.22179251,132.25,132.16,26.0]
[1750632744502,0.74,132.24,132.2,9.93828069]
[1750632744682,19.38964886,132.24,132.21,9.93828069]
[1750632744997,20.99462786,132.26,132.23,9.93828069]
[1750632745378,18.64964886,132.26,132.24,9.93828069]
[1750632745577,9.93828069,132.25,132.19,1.5319]
[1750632745778,6.5305,132.28,132.22,26.0]
[1750632745981,0.74,132.26,132.23,9.93828069]
[1750632746407,19.38964886,132.27,132.24,9.93828069]
[1750632747586,29.32792955,132.27,132.23,9.93828069]
[1750632747792,29.32792955,132.27,132.23,35.93828069]
[1750632748393,28.58792955,132.29,132.24,9.93828069]
[1750632748699,10.67828069,132.28,132.24,9.93828069]
[1750632749306,18.64964886,132.3,132.25,9.93828069]
[1750632749487,0.74,132.34,132.28,9.93828069]
[1750632749681,0.74,132.32,132.28,9.93828069]
[1750632750107,0.74,132.32,132.27,26.0]
[1750632750316,10.67828069,132.32,132.27,26.0]
[1750632750609,28.58792955,132.33,132.29,9.93828069]
[1750632751311,6.9244,132.36,132.31,9.93828069]
[1750632751519,10.67828069,132.38,132.33,9.93828069]
[1750632751686,0.74,132.38,132.34,9.93828069]
[1750632751890,0.74,132.38,132.35,9.93828069]
[1750632752200,18.64964886,132.38,132.35,9.93828069]
[1750632752397,11.93687064,132.42,132.37,26.0]
[1750632752589,7.0734,132.42,132.36,26.0]
[1750632752792,9.93828069,132.41,132.37,9.93828069]
[1750632753010,10.67828069,132.41,132.36,35.93828069]
[1750632753218,0.74,132.39,132.33,7.56]
[1750632753399,0.74,132.38,132.34,26.0]
[1750632753592,10.67828069,132.38,132.34,35.93828069]
[1750632753905,19.38964886,132.38,132.35,9.93828069]
[1750632754611,19.38964886,132.35,132.25,18.64964886]
[1750632754910,9.93828069,132.3,132.27,7.56]
[1750632755083,10.67828069,132.3,132.27,7.56]
[1750632755286,18.64964886,132.34,132.28,9.93828069]
[1750632755503,0.74,132.34,132.31,9.93828069]
[1750632755895,0.74,132.34,132.32,9.93828069]
[1750632756100,0.74,132.37,132.33,9.93828069]
[1750632756691,9.93828069,132.39,132.35,9.93828069]
[1750632756894,0.74,132.4,132.33,33.56]
[1750632756895,10.67828069,132.4,132.36,9.93828069]
[1750632757107,0.74,132.4,132.37,9.93828069]
[1750632757311,0.74,132.4,132.36,35.93828069]
[1750632757512,28.58792955,132.41,132.36,35.93828069]
[1750632757821,9.93828069,132.4,132.36,35.93828069]
[1750632758028,19.38964886,132.41,132.36,35.93828069]
[1750632758209,9.93828069,132.4,132.36,35.93828069]
[1750632758388,9.93828069,132.4,132.36,26.0]
[1750632758588,9.93828069,132.39,132.36,26.0]
[1750632760018,6.1464,132.42,132.37,9.93828069]
[1750632760239,6.1464,132.42,132.36,26.0]
[1750632760240,15.0777511,132.44,132.39,26.0]
[1750632760522,15.0777511,132.44,132.4,15.0777511]
[1750632760899,15.0777511,132.44,132.39,33.56]
[1750632761092,15.0777511,132.44,132.4,15.0777511]
[1750632761318,18.64964886,132.45,132.4,15.0777511]
[1750632761614,15.0777511,132.44,132.4,15.0777511]
[1750632762721,15.0777511,132.43,132.39,48.6377511]
[1750632763096,18.64964886,132.45,132.39,48.6377511]
[1750632763318,15.0777511,132.43,132.39,48.6377511]
[1750632763708,15.0777511,132.44,132.4,15.0777511]
[1750632763906,14.5777511,132.44,132.4,15.0777511]
[1750632765700,0.74,132.46,132.4,15.0777511]
[1750632766027,15.0777511,132.45,132.42,26.0]
[1750632766207,15.0777511,132.44,132.42,26.0]
[1750632767925,15.8177511,132.43,132.39,33.56]
[1750632768127,15.0777511,132.42,132.39,33.56]
[1750632768329,0.74,132.43,132.39,33.56]
[1750632768508,15.0777511,132.42,132.39,33.56]
[1750632769141,0.74,132.43,132.39,33.56]
[1750632769305,0.74,132.43,132.39,48.6377511]
[1750632769507,15.8177511,132.43,132.39,48.6377511]
[1750632770705,0.74,132.43,132.39,48.6377511]
[1750632770905,15.0777511,132.44,132.4,15.0777511]
[1750632771306,0.74,132.47,132.41,15.0777511]
[1750632771522,15.8177511,132.43,132.39,48.6377511]
[1750632771723,15.0777511,132.41,132.39,7.56]
[1750632771915,15.8177511,132.41,132.39,7.56]
[1750632772115,15.0777511,132.4,132.39,7.56]
[1750632773120,0.74,132.41,132.39,7.56]
[1750632773314,15.8177511,132.41,132.39,7.56]
[1750632773923,15.0777511,132.4,132.39,7.56]
[1750632774155,15.0777511,132.41,132.39,7.56]
[1750632774920,0.74,132.42,132.39,7.56]
[1750632774921,15.8177511,132.42,132.39,7.56]
[1750632775520,15.0777511,132.41,132.39,7.56]
[1750632776034,15.8177511,132.41,132.39,7.56]
[1750632776433,15.0777511,132.41,132.39,7.56]
[1750632777435,19.38964886,132.48,132.4,15.0777511]
[1750632777637,15.0777511,132.43,132.39,22.6377511]
[1750632778007,15.0777511,132.42,132.39,7.56]
[1750632778208,18.64964886,132.48,132.39,7.56]
[1750632778431,33.72739996,132.48,132.39,7.56]
[1750632778631,15.0777511,132.42,132.39,7.56]
[1750632779336,15.0777511,132.41,132.39,7.56]
[1750632780315,33.72739996,132.48,132.34,96.5208]
[1750632780316,9.90288088,132.4,132.34,96.5208]
[1750632780517,9.90288088,132.35,132.34,7.56]
[1750632780823,9.90288088,132.37,132.3,35.90288088]
[1750632781021,9.90288088,132.34,132.3,35.90288088]
[1750632781226,9.90288088,132.33,132.29,7.56]
[1750632781444,9.90288088,132.31,132.29,7.56]
[1750632781624,28.55252974,132.37,132.29,7.56]
[1750632781625,9.90288088,132.3,132.29,7.56]
[1750632781828,9.90288088,132.3,132.24,9.1268]
[1750632782038,9.90288088,132.27,132.24,7.56]
[1750632782241,15.11884175,132.27,132.24,7.56]
[1750632783747,15.11884175,132.26,132.24,7.56]
[1750632784053,15.11884175,132.27,132.24,7.56]
[1750632785016,15.11884175,132.26,132.24,7.56]
[1750632785218,18.64964886,132.29,132.24,7.56]
[1750632785551,15.11884175,132.25,132.24,7.56]
[1750632785913,6.0433,132.3,132.24,7.56]
[1750632786130,15.11884175,132.25,132.24,7.56]
[1750632786843,15.11884175,132.26,132.24,7.56]
[1750632787340,15.11884175,132.25,132.24,7.56]
[1750632789033,15.11884175,132.26,132.24,7.56]
[1750632789432,15.11884175,132.25,132.24,7.56]
[1750632789827,6.0433,132.3,132.24,7.56]
[1750632790022,15.11884175,132.25,132.24,7.56]
[1750632790244,15.11884175,132.26,132.24,7.56]
[1750632790623,33.76849061,132.25,132.19,7.52]
[1750632790821,15.11884175,132.21,132.19,7.52]
[1750632793347,15.11884175,132.22,132.19,7.52]
[1750632794243,15.11884175,132.21,132.19,7.52]
[1750632794442,18.64964886,132.25,132.19,7.52]
[1750632794638,15.11884175,132.22,132.19,7.52]
[1750632795031,15.11884175,132.21,132.19,7.52]
[1750632795946,15.11884175,132.22,132.19,7.52]
[1750632797823,15.11884175,132.21,132.19,7.52]
[1750632799162,1.5064,132.27,132.19,7.52]
[1750632799163,15.11884175,132.2,132.19,7.52]
[1750632799332,15.11884175,132.2,132.16,27.5058]
[1750632799534,15.11884175,132.19,132.16,27.5058]
[1750632800037,33.76849061,132.24,132.16,27.5058]
[1750632800239,15.11884175,132.19,132.16,27.5058]
[1750632800851,15.11884175,132.19,132.16,26.0]
[1750632801050,15.11884175,132.18,132.15,26.0]
[1750632801444,15.11884175,132.18,132.14,22.63884175]
[1750632801858,15.11884175,132.18,132.15,26.0]
[1750632802057,15.11884175,132.18,132.14,22.63884175]
[1750632802563,15.11884175,132.18,132.14,48.63884175]
[1750632803659,15.11884175,132.17,132.14,33.52]
[1750632804244,9.93742214,132.16,132.14,33.52]
[1750632804764,9.93742214,132.17,132.14,33.52]
[1750632805561,9.93742214,132.18,132.14,43.45742214]
[1750632806463,9.93742214,132.17,132.14,33.52]
[1750632807161,9.93742214,132.15,132.14,7.52]
[1750632808763,9.93742214,132.15,132.12,26.0]
[1750632809074,9.93742214,132.13,132.1,7.52]
[1750632809277,9.93742214,132.11,132.05,23.93062214]
[1750632809444,9.93742214,132.13,132.08,35.93742214]
[1750632809647,18.64964886,132.15,132.1,9.93742214]
[1750632809973,28.587071,132.15,132.1,9.93742214]
[1750632810869,28.587071,132.15,132.11,9.93742214]
[1750632812339,6.3065,132.2,132.12,9.93742214]